[Event "Titled Tuesday Blitz January 17 Early 2023"]
[White "Estrada Nieto, Julian"]
[Black "Matveeva, Olga"]
[WhiteFideId "5101018"]
[BlackFideId "24107018"]
[WhiteElo "2215"]
[BlackElo "2128"]
[Result "0-1"]
[Round "11"]
[TimeControl "180+2"]
[Date "2023.01.17"]
[WhiteClock "0:00:04"]
[BlackClock "0:00:22"]

1. Nf3 {[%clk 0:03:00]}  d5 {[%clk 0:02:59]} 2. c4 {[%clk 0:03:00]}  e6 {[%clk 0:02:58]} 3. b3 {[%clk 0:03:00]}  Nf6 {[%clk 0:02:58]} 4. Bb2 {[%clk 0:03:00]}  Be7 {[%clk 0:02:58]} 5. g3 {[%clk 0:03:00]}  O-O {[%clk 0:02:58]} 6. Bg2 {[%clk 0:03:01]}  c5 {[%clk 0:02:58]} 7. O-O {[%clk 0:03:00]}  Nc6 {[%clk 0:02:57]} 8. cxd5 {[%clk 0:02:59]}  Nxd5 {[%clk 0:02:56]} 9. Nc3 {[%clk 0:02:59]}  Bf6 {[%clk 0:02:56]} 10. Rc1 {[%clk 0:02:57]}  b6 {[%clk 0:02:52]} 11. a3 {[%clk 0:02:57]}  Bb7 {[%clk 0:02:52]} 12. Qc2 {[%clk 0:02:56]}  Nxc3 {[%clk 0:02:50]} 13. Bxc3 {[%clk 0:02:56]}  Bxc3 {[%clk 0:02:48]} 14. Qxc3 {[%clk 0:02:51]}  Rc8 {[%clk 0:02:46]} 15. Rfd1 {[%clk 0:02:39]}  Qe7 {[%clk 0:02:36]} 16. e3 {[%clk 0:02:23]}  Rfd8 {[%clk 0:02:31]} 17. d3 {[%clk 0:02:16]}  Rd7 {[%clk 0:02:22]} 18. Ne5 {[%clk 0:02:11]}  Nxe5 {[%clk 0:02:20]} 19. Bxb7 {[%clk 0:02:04]}  Rxb7 {[%clk 0:02:21]} 20. Qxe5 {[%clk 0:02:04]}  Rd8 {[%clk 0:02:17]} 21. Qc3 {[%clk 0:01:50]}  Rbd7 {[%clk 0:02:16]} 22. b4 {[%clk 0:01:48]}  cxb4 {[%clk 0:02:12]} 23. axb4 {[%clk 0:01:49]}  h6 {[%clk 0:02:07]} 24. Rd2 {[%clk 0:01:39]}  Rd5 {[%clk 0:01:57]} 25. Rcd1 {[%clk 0:01:34]}  Qd7 {[%clk 0:01:50]} 26. f4 {[%clk 0:01:18]}  Rc8 {[%clk 0:01:47]} 27. Qb2 {[%clk 0:01:13]}  Qc6 {[%clk 0:01:41]} 28. e4 {[%clk 0:01:05]}  Rd7 {[%clk 0:01:36]} 29. Qe5 {[%clk 0:00:55]}  Qc3 {[%clk 0:01:26]} 30. Qxc3 {[%clk 0:00:53]}  Rxc3 {[%clk 0:01:27]} 31. Ra2 {[%clk 0:00:42]}  Rb3 {[%clk 0:01:21]} 32. Ra4 {[%clk 0:00:34]}  b5 {[%clk 0:01:16]} 33. Ra6 {[%clk 0:00:34]}  Rxb4 {[%clk 0:01:13]} 34. Kf2 {[%clk 0:00:32]}  Rb2+ {[%clk 0:01:10]} 35. Ke3 {[%clk 0:00:30]}  Rxh2 {[%clk 0:01:09]} 36. Rda1 {[%clk 0:00:28]}  Rg2 {[%clk 0:00:58]} 37. Kf3 {[%clk 0:00:28]}  Rd2 {[%clk 0:00:57]} 38. Rxa7 {[%clk 0:00:28]}  R2xd3+ {[%clk 0:00:50]} 39. Kg4 {[%clk 0:00:28]}  g6 {[%clk 0:00:45]} 40. Rxd7 {[%clk 0:00:25]}  Rxd7 {[%clk 0:00:46]} 41. Ra8+ {[%clk 0:00:25]}  Kg7 {[%clk 0:00:45]} 42. Rb8 {[%clk 0:00:25]}  Rd4 {[%clk 0:00:44]} 43. e5 {[%clk 0:00:22]}  b4 {[%clk 0:00:43]} 44. Kf3 {[%clk 0:00:20]}  g5 {[%clk 0:00:41]} 45. Ke3 {[%clk 0:00:17]}  Rc4 {[%clk 0:00:41]} 46. Rb7 {[%clk 0:00:16]}  Kg6 {[%clk 0:00:40]} 47. Kf3 {[%clk 0:00:10]}  Rc3+ {[%clk 0:00:39]} 48. Kf2 {[%clk 0:00:06]}  b3 {[%clk 0:00:38]} 49. Kg2 {[%clk 0:00:05]}  Rc2+ {[%clk 0:00:35]} 50. Kf3 {[%clk 0:00:05]}  Rc3+ {[%clk 0:00:32]} 51. Kg2 {[%clk 0:00:04]}  g4 {[%clk 0:00:23]} 52. Kf2 {[%clk 0:00:04]}  Rc2+ {[%clk 0:00:22]} 0-1


[Site "https://www.chess.com"]

[Event "Titled Tuesday Blitz January 17 Early 2023"]
[White "Player, Edmund C"]
[Black "Bon, Michael"]
[WhiteFideId "406520"]
[BlackFideId "620696"]
[WhiteElo "2204"]
[BlackElo "2394"]
[Result "1-0"]
[Round "11"]
[TimeControl "180+2"]
[Date "2023.01.17"]
[WhiteClock "0:00:03"]
[BlackClock "0:00:02"]

1. e4 {[%clk 0:03:00]}  c5 {[%clk 0:02:59]} 2. Nf3 {[%clk 0:03:01]}  d6 {[%clk 0:03:00]} 3. d4 {[%clk 0:02:59]}  cxd4 {[%clk 0:03:01]} 4. Nxd4 {[%clk 0:03:00]}  Nf6 {[%clk 0:03:01]} 5. Nc3 {[%clk 0:03:00]}  Nc6 {[%clk 0:03:00]} 6. Bg5 {[%clk 0:02:58]}  e6 {[%clk 0:02:58]} 7. Qd2 {[%clk 0:02:57]}  a6 {[%clk 0:02:53]} 8. O-O-O {[%clk 0:02:52]}  Bd7 {[%clk 0:02:50]} 9. f4 {[%clk 0:02:51]}  Be7 {[%clk 0:02:36]} 10. Nxc6 {[%clk 0:02:18]}  Bxc6 {[%clk 0:02:34]} 11. Bd3 {[%clk 0:02:19]}  b5 {[%clk 0:02:28]} 12. e5 {[%clk 0:01:55]}  dxe5 {[%clk 0:02:02]} 13. fxe5 {[%clk 0:01:52]}  Nd5 {[%clk 0:02:03]} 14. Bxe7 {[%clk 0:01:48]}  Qxe7 {[%clk 0:02:04]} 15. Ne4 {[%clk 0:01:45]}  O-O {[%clk 0:02:04]} 16. Rdf1 {[%clk 0:01:04]}  f5 {[%clk 0:00:49]} 17. exf6 {[%clk 0:00:46]}  gxf6 {[%clk 0:00:50]} 18. Rhg1 {[%clk 0:00:39]}  Nb4 {[%clk 0:00:42]} 19. a3 {[%clk 0:00:32]}  Nxd3+ {[%clk 0:00:41]} 20. Qxd3 {[%clk 0:00:32]}  Rad8 {[%clk 0:00:35]} 21. Qe3 {[%clk 0:00:20]}  f5 {[%clk 0:00:22]} 22. Ng3 {[%clk 0:00:14]}  Qf6 {[%clk 0:00:20]} 23. Re1 {[%clk 0:00:10]}  Rfe8 {[%clk 0:00:19]} 24. Qe5 {[%clk 0:00:09]}  Qxe5 {[%clk 0:00:18]} 25. Rxe5 {[%clk 0:00:10]}  Rd5 {[%clk 0:00:17]} 26. Rxd5 {[%clk 0:00:09]}  Bxd5 {[%clk 0:00:17]} 27. Nh5 {[%clk 0:00:09]}  Kf7 {[%clk 0:00:16]} 28. g3 {[%clk 0:00:09]}  Bc6 {[%clk 0:00:15]} 29. Rf1 {[%clk 0:00:08]}  Rd8 {[%clk 0:00:14]} 30. Nf4 {[%clk 0:00:08]}  Kf6 {[%clk 0:00:13]} 31. Nh5+ {[%clk 0:00:08]}  Kg5 {[%clk 0:00:11]} 32. Nf4 {[%clk 0:00:07]}  Rd6 {[%clk 0:00:12]} 33. Re1 {[%clk 0:00:07]}  Kf6 {[%clk 0:00:12]} 34. Nh5+ {[%clk 0:00:07]}  Kg5 {[%clk 0:00:10]} 35. Nf4 {[%clk 0:00:07]}  Be4 {[%clk 0:00:10]} 36. h3 {[%clk 0:00:06]}  e5 {[%clk 0:00:09]} 37. Ne2 {[%clk 0:00:05]}  Kf6 {[%clk 0:00:06]} 38. Nc3 {[%clk 0:00:05]}  Bc6 {[%clk 0:00:07]} 39. Nd1 {[%clk 0:00:05]}  h5 {[%clk 0:00:06]} 40. Ne3 {[%clk 0:00:04]}  Be4 {[%clk 0:00:04]} 41. Rf1 {[%clk 0:00:05]}  Kg5 {[%clk 0:00:04]} 42. h4+ {[%clk 0:00:04]}  Kg6 {[%clk 0:00:03]} 43. Rf2 {[%clk 0:00:04]}  Rc6 {[%clk 0:00:02]} 44. Nf1 {[%clk 0:00:03]} 1-0


[Site "https://www.chess.com"]

[Event "Titled Tuesday Blitz January 17 Early 2023"]
[White "Manon-og, Ramon Jr."]
[Black "Legenia, Artem"]
[WhiteFideId "5200776"]
[BlackFideId "14136945"]
[WhiteElo "1999"]
[BlackElo "2092"]
[Result "1-0"]
[Round "11"]
[TimeControl "180+2"]
[Date "2023.01.17"]
[WhiteClock "0:00:19"]
[BlackClock "0:00:47"]

1. e4 {[%clk 0:03:00]}  b6 {[%clk 0:02:52]} 2. d4 {[%clk 0:02:59]}  e6 {[%clk 0:02:52]} 3. Bd3 {[%clk 0:02:58]}  Bb7 {[%clk 0:02:53]} 4. Nf3 {[%clk 0:02:58]}  d6 {[%clk 0:02:52]} 5. O-O {[%clk 0:02:57]}  Nd7 {[%clk 0:02:52]} 6. Bg5 {[%clk 0:02:57]}  Ne7 {[%clk 0:02:49]} 7. Nc3 {[%clk 0:02:54]}  h6 {[%clk 0:02:48]} 8. Bh4 {[%clk 0:02:54]}  a6 {[%clk 0:02:47]} 9. Qd2 {[%clk 0:02:54]}  g6 {[%clk 0:02:47]} 10. Rae1 {[%clk 0:02:40]}  Bg7 {[%clk 0:02:47]} 11. e5 {[%clk 0:02:36]}  d5 {[%clk 0:02:46]} 12. h3 {[%clk 0:02:27]}  c5 {[%clk 0:02:46]} 13. dxc5 {[%clk 0:02:23]}  bxc5 {[%clk 0:02:43]} 14. Nxd5 {[%clk 0:02:05]}  Bxd5 {[%clk 0:02:32]} 15. c4 {[%clk 0:02:05]}  Bb7 {[%clk 0:02:26]} 16. Qc2 {[%clk 0:02:04]}  g5 {[%clk 0:02:24]} 17. Bg3 {[%clk 0:02:04]}  Nc6 {[%clk 0:02:17]} 18. Be4 {[%clk 0:02:00]}  Qc7 {[%clk 0:02:17]} 19. Qa4 {[%clk 0:01:57]}  O-O {[%clk 0:02:15]} 20. Bb1 {[%clk 0:01:56]}  Nb6 {[%clk 0:02:12]} 21. Qc2 {[%clk 0:01:55]}  Rfe8 {[%clk 0:02:04]} 22. Qh7+ {[%clk 0:01:50]}  Kf8 {[%clk 0:02:04]} 23. h4 {[%clk 0:01:43]}  g4 {[%clk 0:01:54]} 24. Nh2 {[%clk 0:01:43]}  Nd4 {[%clk 0:01:52]} 25. Nxg4 {[%clk 0:01:40]}  Qc6 {[%clk 0:01:47]} 26. Be4 {[%clk 0:01:34]}  Qc7 {[%clk 0:01:47]} 27. Nf6 {[%clk 0:01:29]}  Bxe4 {[%clk 0:01:43]} 28. Rxe4 {[%clk 0:01:20]}  Nxc4 {[%clk 0:01:35]} 29. Rg4 {[%clk 0:01:08]}  Ne2+ {[%clk 0:01:27]} 30. Kh2 {[%clk 0:01:06]}  Nxg3 {[%clk 0:01:27]} 31. Qxg7+ {[%clk 0:00:59]}  Ke7 {[%clk 0:01:27]} 32. fxg3 {[%clk 0:00:59]}  Nxe5 {[%clk 0:01:25]} 33. Rgf4 {[%clk 0:00:37]}  Rf8 {[%clk 0:01:24]} 34. Nh7 {[%clk 0:00:36]}  Qd6 {[%clk 0:01:14]} 35. Nxf8 {[%clk 0:00:31]}  Rxf8 {[%clk 0:01:13]} 36. Qxh6 {[%clk 0:00:32]}  Rg8 {[%clk 0:01:04]} 37. Qh7 {[%clk 0:00:26]}  Rg4 {[%clk 0:00:58]} 38. Rxf7+ {[%clk 0:00:24]}  Nxf7 {[%clk 0:00:57]} 39. Rxf7+ {[%clk 0:00:24]}  Ke8 {[%clk 0:00:57]} 40. Rf3 {[%clk 0:00:19]}  a5 {[%clk 0:00:47]} 41. Qh5+ {[%clk 0:00:19]} 1-0


[Site "https://www.chess.com"]

[Event "Titled Tuesday Blitz January 17 Early 2023"]
[White "Fernandez Siles, Luis"]
[Black "Broca Jimenez, Fernando"]
[WhiteFideId "2209420"]
[BlackFideId "5104742"]
[WhiteElo "2218"]
[BlackElo "2075"]
[Result "1/2-1/2"]
[Round "11"]
[TimeControl "180+2"]
[Date "2023.01.17"]
[WhiteClock "0:00:24"]
[BlackClock "0:00:07"]

1. d4 {[%clk 0:03:00]}  Nf6 {[%clk 0:02:52]} 2. Bg5 {[%clk 0:02:58]}  g6 {[%clk 0:02:45]} 3. Bxf6 {[%clk 0:02:58]}  exf6 {[%clk 0:02:46]} 4. c4 {[%clk 0:02:58]}  Bg7 {[%clk 0:02:47]} 5. Nc3 {[%clk 0:02:58]}  O-O {[%clk 0:02:47]} 6. g3 {[%clk 0:02:59]}  f5 {[%clk 0:02:48]} 7. e3 {[%clk 0:02:58]}  c6 {[%clk 0:02:47]} 8. Bg2 {[%clk 0:02:57]}  d6 {[%clk 0:02:44]} 9. Nge2 {[%clk 0:02:56]}  Na6 {[%clk 0:02:44]} 10. O-O {[%clk 0:02:56]}  Nc7 {[%clk 0:02:44]} 11. b4 {[%clk 0:02:51]}  d5 {[%clk 0:02:44]} 12. cxd5 {[%clk 0:02:48]}  Nxd5 {[%clk 0:02:44]} 13. Nxd5 {[%clk 0:02:48]}  cxd5 {[%clk 0:02:44]} 14. Qb3 {[%clk 0:02:45]}  Be6 {[%clk 0:02:44]} 15. Nf4 {[%clk 0:02:41]}  Qd6 {[%clk 0:02:34]} 16. Bxd5 {[%clk 0:02:37]}  Bxd5 {[%clk 0:02:32]} 17. Qxd5 {[%clk 0:02:24]}  Qxd5 {[%clk 0:02:24]} 18. Nxd5 {[%clk 0:02:23]}  Rfd8 {[%clk 0:02:25]} 19. Nf4 {[%clk 0:02:20]}  Bf8 {[%clk 0:02:21]} 20. b5 {[%clk 0:02:14]}  Rac8 {[%clk 0:02:20]} 21. Rfc1 {[%clk 0:02:11]}  Bd6 {[%clk 0:02:05]} 22. Nd3 {[%clk 0:02:09]}  Kf8 {[%clk 0:02:02]} 23. a4 {[%clk 0:02:06]}  Ke7 {[%clk 0:02:00]} 24. Kf1 {[%clk 0:02:05]}  f6 {[%clk 0:01:56]} 25. Ke2 {[%clk 0:02:04]}  g5 {[%clk 0:01:44]} 26. f3 {[%clk 0:01:28]}  Kd7 {[%clk 0:01:42]} 27. Nc5+ {[%clk 0:01:20]}  Bxc5 {[%clk 0:01:37]} 28. dxc5 {[%clk 0:01:18]}  Ke6 {[%clk 0:01:37]} 29. Rc4 {[%clk 0:01:14]}  Rd5 {[%clk 0:01:32]} 30. Rac1 {[%clk 0:01:14]}  h5 {[%clk 0:01:23]} 31. R1c2 {[%clk 0:01:12]}  Ke7 {[%clk 0:01:15]} 32. c6 {[%clk 0:01:10]}  Rc7 {[%clk 0:01:03]} 33. cxb7 {[%clk 0:01:03]}  Rxb7 {[%clk 0:01:03]} 34. Rc7+ {[%clk 0:01:01]}  Rd7 {[%clk 0:01:04]} 35. Rxb7 {[%clk 0:00:58]}  Rxb7 {[%clk 0:01:03]} 36. Rc6 {[%clk 0:00:59]}  Rd7 {[%clk 0:01:02]} 37. Rc8 {[%clk 0:00:44]}  Rb7 {[%clk 0:00:54]} 38. Rc5 {[%clk 0:00:42]}  Rd7 {[%clk 0:00:53]} 39. Rxf5 {[%clk 0:00:41]}  Rd6 {[%clk 0:00:51]} 40. Rc5 {[%clk 0:00:40]}  Ke6 {[%clk 0:00:49]} 41. Rc6 {[%clk 0:00:40]}  Rxc6 {[%clk 0:00:48]} 42. bxc6 {[%clk 0:00:41]}  Kd6 {[%clk 0:00:49]} 43. e4 {[%clk 0:00:38]}  Kxc6 {[%clk 0:00:49]} 44. f4 {[%clk 0:00:39]}  Kc5 {[%clk 0:00:43]} 45. Kd3 {[%clk 0:00:36]}  h4 {[%clk 0:00:30]} 46. Kc3 {[%clk 0:00:28]}  hxg3 {[%clk 0:00:13]} 47. hxg3 {[%clk 0:00:28]}  gxf4 {[%clk 0:00:04]} 48. gxf4 {[%clk 0:00:28]}  a6 {[%clk 0:00:05]} 49. e5 {[%clk 0:00:23]}  fxe5 {[%clk 0:00:03]} 50. fxe5 {[%clk 0:00:23]}  Kd5 {[%clk 0:00:04]} 51. Kb4 {[%clk 0:00:23]}  Kxe5 {[%clk 0:00:04]} 52. Ka5 {[%clk 0:00:23]}  Kd6 {[%clk 0:00:05]} 53. Kxa6 {[%clk 0:00:24]}  Kc7 {[%clk 0:00:06]} 54. Ka7 {[%clk 0:00:22]}  Kc8 {[%clk 0:00:06]} 55. a5 {[%clk 0:00:23]}  Kc7 {[%clk 0:00:06]} 56. a6 {[%clk 0:00:24]}  Kc8 {[%clk 0:00:07]} 57. Ka8 {[%clk 0:00:23]}  Kc7 {[%clk 0:00:07]} 58. a7 {[%clk 0:00:24]}  Kc8 {[%clk 0:00:07]} 1/2-1/2


[Site "https://www.chess.com"]

[Event "Titled Tuesday Blitz January 17 Early 2023"]
[White "Petrova, Irina"]
[Black "Tarnowska, Aleksandra"]
[WhiteFideId "14124122"]
[BlackFideId "1180967"]
[WhiteElo "2108"]
[BlackElo "1835"]
[Result "0-1"]
[Round "11"]
[TimeControl "180+2"]
[Date "2023.01.17"]
[WhiteClock "0:00:01"]
[BlackClock "0:00:09"]

1. e4 {[%clk 0:03:00]}  c5 {[%clk 0:02:57]} 2. Nf3 {[%clk 0:02:59]}  e6 {[%clk 0:02:58]} 3. c4 {[%clk 0:02:58]}  Qc7 {[%clk 0:02:52]} 4. Nc3 {[%clk 0:02:58]}  a6 {[%clk 0:02:53]} 5. Be2 {[%clk 0:02:57]}  Nc6 {[%clk 0:02:50]} 6. O-O {[%clk 0:02:57]}  Nf6 {[%clk 0:02:50]} 7. d4 {[%clk 0:02:55]}  cxd4 {[%clk 0:02:51]} 8. Nxd4 {[%clk 0:02:55]}  Bb4 {[%clk 0:02:50]} 9. Qd3 {[%clk 0:02:52]}  O-O {[%clk 0:02:39]} 10. Be3 {[%clk 0:02:41]}  Bxc3 {[%clk 0:02:31]} 11. bxc3 {[%clk 0:02:40]}  Ne5 {[%clk 0:02:31]} 12. Qc2 {[%clk 0:02:35]}  Nxc4 {[%clk 0:02:26]} 13. Bg5 {[%clk 0:02:34]}  Ne5 {[%clk 0:01:58]} 14. f4 {[%clk 0:02:20]}  Neg4 {[%clk 0:01:47]} 15. Bxg4 {[%clk 0:01:51]}  Nxg4 {[%clk 0:01:46]} 16. Qe2 {[%clk 0:01:51]}  f5 {[%clk 0:01:26]} 17. e5 {[%clk 0:01:45]}  h6 {[%clk 0:01:23]} 18. h3 {[%clk 0:01:37]}  Qxc3 {[%clk 0:01:14]} 19. Nc2 {[%clk 0:01:35]}  hxg5 {[%clk 0:00:56]} 20. hxg4 {[%clk 0:01:34]}  gxf4 {[%clk 0:00:50]} 21. Rxf4 {[%clk 0:01:18]}  b5 {[%clk 0:00:42]} 22. gxf5 {[%clk 0:01:07]}  Rxf5 {[%clk 0:00:36]} 23. Rxf5 {[%clk 0:01:00]}  exf5 {[%clk 0:00:37]} 24. Rf1 {[%clk 0:01:00]}  g6 {[%clk 0:00:37]} 25. Ne3 {[%clk 0:00:41]}  Bb7 {[%clk 0:00:33]} 26. Qf2 {[%clk 0:00:23]}  Qxe5 {[%clk 0:00:29]} 27. Re1 {[%clk 0:00:19]}  Re8 {[%clk 0:00:29]} 28. Nc2 {[%clk 0:00:18]}  Be4 {[%clk 0:00:23]} 29. Nd4 {[%clk 0:00:15]}  d5 {[%clk 0:00:17]} 30. Nc6 {[%clk 0:00:12]}  Qd6 {[%clk 0:00:16]} 31. Nd4 {[%clk 0:00:11]}  Rc8 {[%clk 0:00:15]} 32. g3 {[%clk 0:00:04]}  Qc5 {[%clk 0:00:14]} 33. Rd1 {[%clk 0:00:03]}  Qc3 {[%clk 0:00:11]} 34. Ne6 {[%clk 0:00:01]}  Qc2 {[%clk 0:00:09]} 0-1


[Site "https://www.chess.com"]

[Event "Titled Tuesday Blitz January 17 Early 2023"]
[White "Sovetbekova, Nurai"]
[Black "Avazkhonov, Alikhon"]
[WhiteFideId "13801910"]
[BlackFideId "14208504"]
[WhiteElo "1764"]
[BlackElo "1538"]
[Result "1-0"]
[Round "11"]
[TimeControl "180+2"]
[Date "2023.01.17"]
[WhiteClock "0:01:00"]
[BlackClock "0:00:01"]

1. d4 {[%clk 0:03:00]}  Nf6 {[%clk 0:02:59]} 2. c4 {[%clk 0:03:01]}  e6 {[%clk 0:02:59]} 3. g3 {[%clk 0:03:00]}  Bb4+ {[%clk 0:03:00]} 4. Nd2 {[%clk 0:03:00]}  O-O {[%clk 0:02:56]} 5. Bg2 {[%clk 0:03:00]}  d5 {[%clk 0:02:49]} 6. Nf3 {[%clk 0:02:59]}  b6 {[%clk 0:02:49]} 7. O-O {[%clk 0:02:56]}  Bb7 {[%clk 0:02:49]} 8. Qc2 {[%clk 0:02:49]}  Nbd7 {[%clk 0:02:47]} 9. Nb3 {[%clk 0:02:46]}  a5 {[%clk 0:01:36]} 10. Bf4 {[%clk 0:02:31]}  a4 {[%clk 0:01:34]} 11. Nbd2 {[%clk 0:02:30]}  dxc4 {[%clk 0:01:20]} 12. Nxc4 {[%clk 0:02:27]}  Qe7 {[%clk 0:00:33]} 13. a3 {[%clk 0:02:24]}  Be4 {[%clk 0:00:25]} 14. Qd1 {[%clk 0:02:19]}  Bd6 {[%clk 0:00:18]} 15. Nxd6 {[%clk 0:02:16]}  cxd6 {[%clk 0:00:18]} 16. Rc1 {[%clk 0:02:16]}  b5 {[%clk 0:00:16]} 17. Qd2 {[%clk 0:02:13]}  Nb6 {[%clk 0:00:14]} 18. Qb4 {[%clk 0:02:09]}  Nc4 {[%clk 0:00:13]} 19. Qxb5 {[%clk 0:01:49]}  d5 {[%clk 0:00:12]} 20. Nd2 {[%clk 0:01:47]}  Bxg2 {[%clk 0:00:09]} 21. Kxg2 {[%clk 0:01:46]}  Nxd2 {[%clk 0:00:09]} 22. Bxd2 {[%clk 0:01:47]}  Rfb8 {[%clk 0:00:10]} 23. Qc6 {[%clk 0:01:43]}  Ne4 {[%clk 0:00:07]} 24. Bb4 {[%clk 0:01:41]}  Qa7 {[%clk 0:00:08]} 25. e3 {[%clk 0:01:31]}  Qa6 {[%clk 0:00:04]} 26. Qd7 {[%clk 0:01:28]}  Rd8 {[%clk 0:00:03]} 27. Qc7 {[%clk 0:01:23]}  Rdc8 {[%clk 0:00:03]} 28. Qf4 {[%clk 0:01:22]}  Rxc1 {[%clk 0:00:04]} 29. Rxc1 {[%clk 0:01:23]}  Qe2 {[%clk 0:00:04]} 30. Rc7 {[%clk 0:01:21]}  f6 {[%clk 0:00:02]} 31. Qf3 {[%clk 0:01:17]}  Qxb2 {[%clk 0:00:03]} 32. h4 {[%clk 0:01:07]}  Re8 {[%clk 0:00:02]} 33. Ra7 {[%clk 0:01:04]}  e5 {[%clk 0:00:02]} 34. dxe5 {[%clk 0:01:01]}  fxe5 {[%clk 0:00:02]} 35. Qf7+ {[%clk 0:01:00]}  Kh8 {[%clk 0:00:01]} 36. Qxg7# {[%clk 0:01:00]} 1-0


[Site "https://www.chess.com"]

[Event "Titled Tuesday Blitz January 17 Early 2023"]
[White "Chan, Kim Yew"]
[Black "Zampronha, Wladimir Camilo"]
[WhiteFideId "5717981"]
[BlackFideId "2103087"]
[WhiteElo "2340"]
[BlackElo "2176"]
[Result "0-1"]
[Round "11"]
[TimeControl "180+2"]
[Date "2023.01.17"]
[WhiteClock "0:00:01"]
[BlackClock "0:00:05"]

1. c4 {[%clk 0:02:59]}  Nf6 {[%clk 0:02:59]} 2. Nc3 {[%clk 0:02:57]}  e6 {[%clk 0:02:58]} 3. d4 {[%clk 0:02:50]}  Bb4 {[%clk 0:02:55]} 4. Bd2 {[%clk 0:02:48]}  O-O {[%clk 0:02:52]} 5. e3 {[%clk 0:02:48]}  d5 {[%clk 0:02:51]} 6. Nf3 {[%clk 0:02:45]}  c5 {[%clk 0:02:51]} 7. cxd5 {[%clk 0:02:42]}  exd5 {[%clk 0:02:52]} 8. Be2 {[%clk 0:02:30]}  Nc6 {[%clk 0:02:51]} 9. dxc5 {[%clk 0:02:29]}  Bxc5 {[%clk 0:02:50]} 10. Nb5 {[%clk 0:02:28]}  Re8 {[%clk 0:02:47]} 11. O-O {[%clk 0:02:27]}  Bg4 {[%clk 0:02:45]} 12. Rc1 {[%clk 0:02:27]}  Bb6 {[%clk 0:02:44]} 13. Bc3 {[%clk 0:02:19]}  Ne4 {[%clk 0:02:40]} 14. Bd4 {[%clk 0:02:03]}  a6 {[%clk 0:02:31]} 15. Bxb6 {[%clk 0:01:43]}  Qxb6 {[%clk 0:02:32]} 16. Nc3 {[%clk 0:01:43]}  Nxc3 {[%clk 0:02:20]} 17. bxc3 {[%clk 0:01:44]}  Rad8 {[%clk 0:02:16]} 18. Nd4 {[%clk 0:01:34]}  Bxe2 {[%clk 0:02:13]} 19. Nxe2 {[%clk 0:01:22]}  Ne5 {[%clk 0:02:07]} 20. Qb3 {[%clk 0:01:21]}  Qc7 {[%clk 0:02:05]} 21. Rfd1 {[%clk 0:01:18]}  Nc4 {[%clk 0:02:03]} 22. Nf4 {[%clk 0:01:18]}  Qc6 {[%clk 0:01:52]} 23. Rd4 {[%clk 0:01:11]}  b5 {[%clk 0:01:48]} 24. Rcd1 {[%clk 0:01:10]}  Re5 {[%clk 0:01:34]} 25. e4 {[%clk 0:01:08]}  Rde8 {[%clk 0:01:02]} 26. Nxd5 {[%clk 0:00:41]}  Rxe4 {[%clk 0:00:58]} 27. Rxe4 {[%clk 0:00:28]}  Rxe4 {[%clk 0:00:59]} 28. h3 {[%clk 0:00:29]}  Re8 {[%clk 0:00:53]} 29. Qb4 {[%clk 0:00:27]}  Qb7 {[%clk 0:00:42]} 30. Ne7+ {[%clk 0:00:12]}  Kh8 {[%clk 0:00:39]} 31. Nf5 {[%clk 0:00:12]}  Kg8 {[%clk 0:00:33]} 32. Qc5 {[%clk 0:00:09]}  Qb6 {[%clk 0:00:22]} 33. Qxb6 {[%clk 0:00:04]}  Nxb6 {[%clk 0:00:22]} 34. Rd6 {[%clk 0:00:05]}  Na4 {[%clk 0:00:20]} 35. Rxa6 {[%clk 0:00:04]}  Nxc3 {[%clk 0:00:21]} 36. Nd6 {[%clk 0:00:04]}  Rb8 {[%clk 0:00:19]} 37. Nf5 {[%clk 0:00:01]}  h6 {[%clk 0:00:19]} 38. Ne3 {[%clk 0:00:02]}  b4 {[%clk 0:00:18]} 39. Ra7 {[%clk 0:00:02]}  Rb5 {[%clk 0:00:17]} 40. Nc2 {[%clk 0:00:03]}  b3 {[%clk 0:00:15]} 41. axb3 {[%clk 0:00:03]}  Rxb3 {[%clk 0:00:16]} 42. Nd4 {[%clk 0:00:04]}  Rb1+ {[%clk 0:00:16]} 43. Kh2 {[%clk 0:00:04]}  Nd5 {[%clk 0:00:16]} 44. Nc6 {[%clk 0:00:04]}  Rb2 {[%clk 0:00:16]} 45. Kg3 {[%clk 0:00:03]}  Nf6 {[%clk 0:00:16]} 46. f3 {[%clk 0:00:03]}  Nh5+ {[%clk 0:00:15]} 47. Kh4 {[%clk 0:00:03]}  Nf4 {[%clk 0:00:14]} 48. g3 {[%clk 0:00:02]}  Ng6+ {[%clk 0:00:14]} 49. Kg4 {[%clk 0:00:02]}  Rc2 {[%clk 0:00:13]} 50. Nd8 {[%clk 0:00:01]}  Ne5+ {[%clk 0:00:13]} 51. Kf4 {[%clk 0:00:01]}  Ng6+ {[%clk 0:00:13]} 52. Ke4 {[%clk 0:00:01]}  Re2+ {[%clk 0:00:12]} 53. Kd3 {[%clk 0:00:02]}  Rg2 {[%clk 0:00:12]} 54. g4 {[%clk 0:00:01]}  Rg3 {[%clk 0:00:12]} 55. Ke3 {[%clk 0:00:01]}  Rxh3 {[%clk 0:00:12]} 56. Kf2 {[%clk 0:00:01]}  Nh4 {[%clk 0:00:11]} 57. f4 {[%clk 0:00:01]}  Rf3+ {[%clk 0:00:11]} 58. Ke2 {[%clk 0:00:01]}  Rxf4 {[%clk 0:00:12]} 59. Nc6 {[%clk 0:00:02]}  Re4+ {[%clk 0:00:12]} 60. Kf2 {[%clk 0:00:01]}  Re8 {[%clk 0:00:12]} 61. Kg3 {[%clk 0:00:01]}  Ng6 {[%clk 0:00:13]} 62. Nd4 {[%clk 0:00:01]}  Rd8 {[%clk 0:00:13]} 63. Nf5 {[%clk 0:00:01]}  Re8 {[%clk 0:00:12]} 64. Rc7 {[%clk 0:00:01]}  Rb8 {[%clk 0:00:11]} 65. Nd6 {[%clk 0:00:01]}  Ra8 {[%clk 0:00:10]} 66. Nxf7 {[%clk 0:00:01]}  Rf8 {[%clk 0:00:10]} 67. Nd6 {[%clk 0:00:01]}  Ne5 {[%clk 0:00:10]} 68. Nf5 {[%clk 0:00:01]}  g6 {[%clk 0:00:08]} 69. Nxh6+ {[%clk 0:00:01]}  Kh8 {[%clk 0:00:09]} 70. Re7 {[%clk 0:00:01]}  Nc6 {[%clk 0:00:04]} 71. Rc7 {[%clk 0:00:01]}  Nd4 {[%clk 0:00:05]} 0-1


[Site "https://www.chess.com"]